[Event "Live Chess"]
[Site "Chess.com"]
[Date "2023.05.20"]
[Round "-"]
[White "blunderabit"]
[Black "Tushinskiy"]
[Result "0-1"]
[WhiteElo "1816"]
[BlackElo "2140"]
[TimeControl "300"]
[EndTime "14:45:58 PDT"]
[Termination "Tushinskiy won on time"]

1. e4 {[%clk 0:04:57.7]} 1... e5 {[%clk 0:04:49.5]} 2. Nf3 {[%clk 0:04:55.4]}
2... d6 {[%clk 0:04:49.4]} 3. d4 {[%clk 0:04:52.7]} 3... Bg4 {[%clk 0:04:47.6]}
4. dxe5 {[%clk 0:04:48.5]} 4... Nd7 {[%clk 0:04:43.9]} 5. Be2 {[%clk 0:04:32.7]}
5... dxe5 {[%clk 0:04:42.2]} 6. O-O {[%clk 0:04:27.9]} 6... Ngf6 {[%clk
0:04:39.9]} 7. Nc3 {[%clk 0:04:11.1]} 7... c6 {[%clk 0:04:38.7]} 8. a3 {[%clk
0:04:07.9]} 8... Qc7 {[%clk 0:04:37.1]} 9. Be3 {[%clk 0:04:04.4]} 9... Be7
{[%clk 0:04:36.3]} 10. Ng5 {[%clk 0:03:54.4]} 10... h6 {[%clk 0:04:31.5]} 11.
Bxg4 {[%clk 0:03:43.4]} 11... hxg5 {[%clk 0:04:30.1]} 12. Bxg5 {[%clk
0:03:29.4]} 12... O-O-O {[%clk 0:04:24]} 13. Be3 {[%clk 0:02:52.3]} 13... Kb8
{[%clk 0:04:22.2]} 14. Qe2 {[%clk 0:02:42.7]} 14... Nc5 {[%clk 0:04:20.5]} 15.
Bf3 {[%clk 0:02:31.3]} 15... Ne6 {[%clk 0:04:18.1]} 16. b4 {[%clk 0:02:20.7]}
16... Nd4 {[%clk 0:04:16.1]} 17. Qd1 {[%clk 0:02:12.6]} 17... Nb3 {[%clk
0:04:06.3]} 18. cxb3 {[%clk 0:01:58.6]} 18... Rxd1 {[%clk 0:04:04]} 19. Rfxd1
{[%clk 0:01:57.9]} 19... Rd8 {[%clk 0:04:01.8]} 20. Rxd8+ {[%clk 0:01:55.2]}
20... Bxd8 {[%clk 0:03:59.1]} 21. Rd1 {[%clk 0:01:53.5]} 21... Be7 {[%clk
0:03:58.1]} 22. h3 {[%clk 0:01:49.4]} 22... a5 {[%clk 0:03:54.5]} 23. bxa5
{[%clk 0:01:30.2]} 23... Qxa5 {[%clk 0:03:54.4]} 24. Na4 {[%clk 0:01:28.9]}
24... Qb5 {[%clk 0:03:39.4]} 25. Nb6 {[%clk 0:00:45.7]} 25... Qxb3 {[%clk
0:03:33.2]} 26. Nd7+ {[%clk 0:00:41.8]} 26... Nxd7 {[%clk 0:03:27.2]} 27. Rxd7
{[%clk 0:00:39.2]} 27... Bxa3 {[%clk 0:03:26.3]} 28. Bg4 {[%clk 0:00:28]} 28...
b6 {[%clk 0:03:19.7]} 29. Rd8+ {[%clk 0:00:15.3]} 29... Kc7 {[%clk 0:03:16.4]}
30. Rc8+ {[%clk 0:00:12.9]} 30... Kb7 {[%clk 0:03:15.3]} 31. Rd8 {[%clk
0:00:11]} 31... Bc5 {[%clk 0:03:04.3]} 32. Rd7+ {[%clk 0:00:05.6]} 32... Ka6
{[%clk 0:03:03.1]} 33. Be2+ {[%clk 0:00:03]} 33... b5 {[%clk 0:02:52.2]} 0-1

[Event "Live Chess"]
[Site "Chess.com"]
[Date "2023.05.20"]
[Round "-"]
[White "risinghelios"]
[Black "wadsy27"]
[Result "0-1"]
[WhiteElo "1919"]
[BlackElo "2560"]
[TimeControl "300"]
[EndTime "14:46:06 PDT"]
[Termination "wadsy27 won by checkmate"]

1. e4 {[%clk 0:04:59.4]} 1... e6 {[%clk 0:04:53.1]} 2. d4 {[%clk 0:04:57.2]}
2... d5 {[%clk 0:04:52.3]} 3. e5 {[%clk 0:04:56.4]} 3... c5 {[%clk 0:04:51.2]}
4. c3 {[%clk 0:04:55.8]} 4... Nc6 {[%clk 0:04:50.7]} 5. Nf3 {[%clk 0:04:54.9]}
5... Qb6 {[%clk 0:04:49.8]} 6. Be2 {[%clk 0:04:54.1]} 6... cxd4 {[%clk
0:04:47.5]} 7. cxd4 {[%clk 0:04:53.1]} 7... Nh6 {[%clk 0:04:47.1]} 8. b3 {[%clk
0:04:45.2]} 8... Nf5 {[%clk 0:04:37.2]} 9. Bb2 {[%clk 0:04:44.2]} 9... Bb4+
{[%clk 0:04:35.1]} 10. Nc3 {[%clk 0:04:37]} 10... Nfxd4 {[%clk 0:04:30.8]} 11.
O-O {[%clk 0:04:34.7]} 11... Nxe2+ {[%clk 0:04:19.5]} 12. Qxe2 {[%clk
0:04:29.6]} 12... Bd7 {[%clk 0:04:17.4]} 13. Na4 {[%clk 0:04:27.8]} 13... Qa6
{[%clk 0:04:13]} 14. Qe3 {[%clk 0:04:24.5]} 14... h6 {[%clk 0:04:05.3]} 15. a3
{[%clk 0:04:19.7]} 15... Be7 {[%clk 0:04:03.3]} 16. Rac1 {[%clk 0:04:11.6]}
16... Na5 {[%clk 0:03:59.2]} 17. Nc5 {[%clk 0:03:50.7]} 17... Bxc5 {[%clk
0:03:55]} 18. Rxc5 {[%clk 0:03:47.4]} 18... b6 {[%clk 0:03:48.5]} 19. Rc2 {[%clk
0:03:45.1]} 19... O-O {[%clk 0:03:45.3]} 20. Rfc1 {[%clk 0:03:43.3]} 20... Rac8
{[%clk 0:03:44.4]} 21. h3 {[%clk 0:03:31.7]} 21... Rxc2 {[%clk 0:03:42.9]} 22.
Rxc2 {[%clk 0:03:30.4]} 22... Rc8 {[%clk 0:03:42.5]} 23. Rxc8+ {[%clk
0:03:27.4]} 23... Qxc8 {[%clk 0:03:40.9]} 24. Nd4 {[%clk 0:03:15.4]} 24... Nb7
{[%clk 0:03:21.8]} 25. Qg3 {[%clk 0:03:06.3]} 25... Nc5 {[%clk 0:03:17.2]} 26.
b4 {[%clk 0:02:58.7]} 26... Ne4 {[%clk 0:03:14.2]} 27. Qe3 {[%clk 0:02:53.1]}
27... Qc4 {[%clk 0:03:05.5]} 28. Nf3 {[%clk 0:02:50]} 28... Bb5 {[%clk
0:03:01.7]} 29. Kh2 {[%clk 0:02:45.1]} 29... Qc2 {[%clk 0:02:56]} 30. Bc1 {[%clk
0:02:43.6]} 30... Qxf2 {[%clk 0:02:54.5]} 31. Qxf2 {[%clk 0:02:42.6]} 31... Nxf2
{[%clk 0:02:54.4]} 32. Nd4 {[%clk 0:02:41.8]} 32... Bd7 {[%clk 0:02:49.6]} 33.
b5 {[%clk 0:02:40.7]} 33... Ne4 {[%clk 0:02:48.1]} 34. Nc6 {[%clk 0:02:38.9]}
34... Nc3 {[%clk 0:02:35.2]} 35. Nxa7 {[%clk 0:02:27.9]} 35... Bxb5 {[%clk
0:02:31.6]} 36. Be3 {[%clk 0:02:27.2]} 36... Bd7 {[%clk 0:02:29]} 37. Bxb6
{[%clk 0:02:25.3]} 37... f6 {[%clk 0:02:26.1]} 38. exf6 {[%clk 0:02:23.8]} 38...
gxf6 {[%clk 0:02:26]} 39. Bd4 {[%clk 0:02:23]} 39... Ne4 {[%clk 0:02:25]} 40.
Kg1 {[%clk 0:02:14.3]} 40... e5 {[%clk 0:02:24.2]} 41. Be3 {[%clk 0:02:12.7]}
41... d4 {[%clk 0:02:23.1]} 42. Bc1 {[%clk 0:02:11.4]} 42... Nc3 {[%clk
0:02:22.1]} 43. Bxh6 {[%clk 0:02:09.5]} 43... e4 {[%clk 0:02:17.9]} 44. Kf2
{[%clk 0:02:06.8]} 44... Kf7 {[%clk 0:02:09.2]} 45. Bc1 {[%clk 0:01:51.2]} 45...
Ke6 {[%clk 0:02:05.9]} 46. h4 {[%clk 0:01:46.5]} 46... e3+ {[%clk 0:01:58.4]}
47. Ke1 {[%clk 0:01:44.4]} 47... Kd5 {[%clk 0:01:53.9]} 48. h5 {[%clk
0:01:38.9]} 48... Ne4 {[%clk 0:01:47.2]} 49. h6 {[%clk 0:01:33.3]} 49... Ng5
{[%clk 0:01:46.3]} 50. Ke2 {[%clk 0:01:29.2]} 50... Ke4 {[%clk 0:01:45.2]} 51.
Ke1 {[%clk 0:01:15.4]} 51... d3 {[%clk 0:01:41.6]} 52. g3 {[%clk 0:01:11.7]}
52... Kf3 {[%clk 0:01:37.6]} 53. a4 {[%clk 0:01:08]} 53... Bxa4 {[%clk
0:01:33.8]} 54. Nc8 {[%clk 0:01:06.8]} 54... d2+ {[%clk 0:01:24.4]} 55. Bxd2
{[%clk 0:01:05.5]} 55... exd2+ {[%clk 0:01:24.3]} 56. Kxd2 {[%clk 0:01:05.4]}
56... Kxg3 {[%clk 0:01:23.8]} 57. Ne7 {[%clk 0:01:00.7]} 57... Kg4 {[%clk
0:01:11.6]} 58. Nd5 {[%clk 0:00:55.2]} 58... Kf5 {[%clk 0:01:05.4]} 59. Ne7+
{[%clk 0:00:53.2]} 59... Ke6 {[%clk 0:01:04.4]} 60. Ng8 {[%clk 0:00:48.9]} 60...
Kf7 {[%clk 0:01:03.4]} 61. h7 {[%clk 0:00:45.3]} 61... Nxh7 {[%clk 0:00:59.9]}
62. Nh6+ {[%clk 0:00:44.8]} 62... Kg6 {[%clk 0:00:58.5]} 63. Ng4 {[%clk
0:00:44.5]} 63... Bd7 {[%clk 0:00:57.5]} 64. Ne3 {[%clk 0:00:43.4]} 64... f5
{[%clk 0:00:56.8]} 65. Ke2 {[%clk 0:00:39.1]} 65... Kg5 {[%clk 0:00:56.1]} 66.
Kf3 {[%clk 0:00:37.4]} 66... Bc6+ {[%clk 0:00:54.8]} 67. Kf2 {[%clk 0:00:36.4]}
67... f4 {[%clk 0:00:54.2]} 68. Nf1 {[%clk 0:00:35.9]} 68... Nf6 {[%clk
0:00:52.9]} 69. Nd2 {[%clk 0:00:35.1]} 69... Ne4+ {[%clk 0:00:52.3]} 70. Nxe4+
{[%clk 0:00:32.4]} 70... Bxe4 {[%clk 0:00:52.2]} 71. Ke2 {[%clk 0:00:32.3]}
71... Kg4 {[%clk 0:00:51.9]} 72. Kf2 {[%clk 0:00:32]} 72... f3 {[%clk
0:00:51.8]} 73. Kf1 {[%clk 0:00:30.9]} 73... Kg3 {[%clk 0:00:51.2]} 74. Kg1
{[%clk 0:00:30.6]} 74... f2+ {[%clk 0:00:50.4]} 75. Kf1 {[%clk 0:00:29.9]} 75...
Bd3# {[%clk 0:00:50.3]} 0-1

[Event "Live Chess"]
[Site "Chess.com"]
[Date "2023.05.20"]
[Round "-"]
[White "omisoc"]
[Black "Doge_Dandolo"]
[Result "1-0"]
[WhiteElo "2136"]
[BlackElo "2031"]
[TimeControl "300"]
[EndTime "14:46:14 PDT"]
[Termination "omisoc won by resignation"]

1. Nf3 {[%clk 0:04:57]} 1... Nf6 {[%clk 0:04:58.5]} 2. b3 {[%clk 0:04:54]} 2...
g6 {[%clk 0:04:57.1]} 3. Bb2 {[%clk 0:04:52.2]} 3... Bg7 {[%clk 0:04:56.8]} 4.
g4 {[%clk 0:04:50.8]} 4... d5 {[%clk 0:04:52.7]} 5. g5 {[%clk 0:04:49.7]} 5...
Nh5 {[%clk 0:04:51.9]} 6. Bxg7 {[%clk 0:04:48.4]} 6... Nxg7 {[%clk 0:04:50.9]}
7. Qc1 {[%clk 0:04:46.3]} 7... O-O {[%clk 0:04:47.3]} 8. h4 {[%clk 0:04:42.7]}
8... Nh5 {[%clk 0:04:44.1]} 9. e3 {[%clk 0:04:36.4]} 9... Bg4 {[%clk 0:04:41.8]}
10. Ne5 {[%clk 0:04:31.7]} 10... Bc8 {[%clk 0:04:35.1]} 11. Bg2 {[%clk
0:04:22.1]} 11... Nd7 {[%clk 0:04:30.3]} 12. Qb2 {[%clk 0:04:18.6]} 12... Nxe5
{[%clk 0:04:28.8]} 13. Qxe5 {[%clk 0:04:16.6]} 13... c6 {[%clk 0:04:27.5]} 14.
Nc3 {[%clk 0:03:55.2]} 14... Bf5 {[%clk 0:04:25.5]} 15. O-O-O {[%clk 0:03:51.2]}
15... Qa5 {[%clk 0:04:21.6]} 16. Kb2 {[%clk 0:03:48.2]} 16... b5 {[%clk
0:04:18.5]} 17. Bf3 {[%clk 0:03:32.8]} 17... b4 {[%clk 0:04:13.5]} 18. Na4
{[%clk 0:03:12.8]} 18... f6 {[%clk 0:04:05.9]} 19. Qxe7 {[%clk 0:03:06.2]} 19...
Rf7 {[%clk 0:03:56]} 20. Qd6 {[%clk 0:03:00.5]} 20... Rd7 {[%clk 0:03:48.2]} 21.
Qc5 {[%clk 0:02:56.7]} 21... Qc7 {[%clk 0:03:33.1]} 22. Bxh5 {[%clk 0:02:52.1]}
22... gxh5 {[%clk 0:03:32.2]} 23. gxf6 {[%clk 0:02:51.1]} 23... Rf7 {[%clk
0:03:30.1]} 24. Rhg1+ {[%clk 0:02:47.5]} 24... Bg6 {[%clk 0:03:28.7]} 25. Qxb4
{[%clk 0:02:43]} 25... Rxf6 {[%clk 0:03:25.3]} 26. f4 {[%clk 0:02:41.9]} 26...
Kh8 {[%clk 0:03:19.6]} 27. Nc5 {[%clk 0:02:40]} 27... a5 {[%clk 0:03:17.1]} 28.
Qd4 {[%clk 0:02:37.9]} 28... Qg7 {[%clk 0:03:12.4]} 29. Rg5 {[%clk 0:02:21.8]}
29... Rb8 {[%clk 0:03:04.3]} 30. c3 {[%clk 0:02:15.1]} 30... a4 {[%clk
0:02:54.4]} 31. Rdg1 {[%clk 0:02:07.6]} 31... axb3 {[%clk 0:02:52.1]} 32. a3
{[%clk 0:02:06.1]} 32... Re8 {[%clk 0:02:42.1]} 33. f5 {[%clk 0:02:02.6]} 33...
Rxf5 {[%clk 0:02:37.8]} 34. Qxg7+ {[%clk 0:01:59.4]} 1-0

[Event "Live Chess"]
[Site "Chess.com"]
[Date "2023.05.20"]
[Round "-"]
[White "Missedidea"]
[Black "f4nomore"]
[Result "0-1"]
[WhiteElo "1675"]
[BlackElo "1413"]
[TimeControl "300"]
[EndTime "14:47:02 PDT"]
[Termination "f4nomore won on time"]

1. d4 {[%clk 0:04:58.4]} 1... g6 {[%clk 0:04:59.9]} 2. e4 {[%clk 0:04:56]} 2...
Bg7 {[%clk 0:04:59.8]} 3. Nc3 {[%clk 0:04:53.3]} 3... d6 {[%clk 0:04:59.1]} 4.
f4 {[%clk 0:04:52.2]} 4... Nd7 {[%clk 0:04:56.3]} 5. Nf3 {[%clk 0:04:50.8]} 5...
a6 {[%clk 0:04:55.5]} 6. Bd3 {[%clk 0:04:49]} 6... b5 {[%clk 0:04:54.2]} 7. a3
{[%clk 0:04:46.6]} 7... Bb7 {[%clk 0:04:52.9]} 8. O-O {[%clk 0:04:43.4]} 8... c5
{[%clk 0:04:51.5]} 9. d5 {[%clk 0:04:36.3]} 9... c4 {[%clk 0:04:49.1]} 10. Be2
{[%clk 0:04:33.6]} 10... Ngf6 {[%clk 0:04:46.9]} 11. e5 {[%clk 0:04:26.1]} 11...
dxe5 {[%clk 0:04:44.5]} 12. fxe5 {[%clk 0:04:24.7]} 12... Ng4 {[%clk 0:04:36.7]}
13. e6 {[%clk 0:04:17]} 13... fxe6 {[%clk 0:04:30.7]} 14. Ng5 {[%clk 0:04:03.1]}
14... Nc5 {[%clk 0:04:00.2]} 15. Bxg4 {[%clk 0:03:56.6]} 15... exd5 {[%clk
0:03:53.6]} 16. Kh1 {[%clk 0:03:09.8]} 16... d4 {[%clk 0:03:45.5]} 17. Ne2
{[%clk 0:02:55.2]} 17... e5 {[%clk 0:03:30.4]} 18. Qe1 {[%clk 0:02:34.7]} 18...
Qe7 {[%clk 0:03:23.9]} 19. Rf7 {[%clk 0:02:28.7]} 19... Qxf7 {[%clk 0:03:13.7]}
20. Nxf7 {[%clk 0:02:26.6]} 20... Kxf7 {[%clk 0:03:11.8]} 21. Qf2+ {[%clk
0:02:15.4]} 21... Ke7 {[%clk 0:03:05.8]} 22. Qg3 {[%clk 0:02:05.6]} 22... Rhf8
{[%clk 0:02:58.8]} 23. Bg5+ {[%clk 0:02:03.5]} 23... Kd6 {[%clk 0:02:54]} 24.
Nxd4 {[%clk 0:01:53.3]} 24... h6 {[%clk 0:02:48.5]} 25. Be3 {[%clk 0:01:32.8]}
25... Ne4 {[%clk 0:02:34]} 26. Qh4 {[%clk 0:01:14.5]} 26... g5 {[%clk
0:02:25.2]} 27. Qh5 {[%clk 0:01:11.3]} 27... exd4 {[%clk 0:02:00.4]} 28. Qg6+
{[%clk 0:01:05.1]} 28... Rf6 {[%clk 0:01:32.7]} 29. Qxg7 {[%clk 0:01:03.6]}
29... dxe3 {[%clk 0:01:28.3]} 30. Qd7+ {[%clk 0:00:56.2]} 30... Ke5 {[%clk
0:01:19.1]} 31. Qe7+ {[%clk 0:00:45.3]} 31... Kf4 {[%clk 0:01:12.8]} 32. Qxb7
{[%clk 0:00:41.5]} 32... Raf8 {[%clk 0:00:56.7]} 33. Be2 {[%clk 0:00:37.6]}
33... Nf2+ {[%clk 0:00:51.3]} 34. Kg1 {[%clk 0:00:35.7]} 34... R8f7 {[%clk
0:00:35.3]} 35. Qf3+ {[%clk 0:00:24.7]} 35... Ke5 {[%clk 0:00:26.2]} 36. Qxe3+
{[%clk 0:00:23.4]} 36... Ne4 {[%clk 0:00:23.3]} 37. Bf3 {[%clk 0:00:21.1]} 37...
Rf4 {[%clk 0:00:20.2]} 38. Bxe4 {[%clk 0:00:18.4]} 38... Rxe4 {[%clk 0:00:18.6]}
39. Qc3+ {[%clk 0:00:16.9]} 39... Kd5 {[%clk 0:00:12.3]} 40. Rd1+ {[%clk
0:00:14.7]} 40... Kc6 {[%clk 0:00:10.5]} 41. a4 {[%clk 0:00:11.6]} 41... Ref4
{[%clk 0:00:08.1]} 42. axb5+ {[%clk 0:00:09.2]} 42... axb5 {[%clk 0:00:07.1]}
43. Qa5 {[%clk 0:00:06.4]} 43... Kc5 {[%clk 0:00:06]} 44. b4+ {[%clk 0:00:02.2]}
44... Kc6 {[%clk 0:00:02.7]} 0-1

[Event "Live Chess"]
[Site "Chess.com"]
[Date "2023.05.20"]
[Round "-"]
[White "LiamClery2020"]
[Black "WilliamofOrange16th"]
[Result "1-0"]
[WhiteElo "2075"]
[BlackElo "1835"]
[TimeControl "300"]
[EndTime "14:47:04 PDT"]
[Termination "LiamClery2020 won by checkmate"]

1. e4 {[%clk 0:04:59.4]} 1... d6 {[%clk 0:04:59.1]} 2. d4 {[%clk 0:04:53.2]}
2... Nf6 {[%clk 0:04:58.1]} 3. Nc3 {[%clk 0:04:52.4]} 3... Nbd7 {[%clk
0:04:57.6]} 4. Be3 {[%clk 0:04:51.8]} 4... e5 {[%clk 0:04:57.4]} 5. dxe5 {[%clk
0:04:50.9]} 5... dxe5 {[%clk 0:04:57.3]} 6. f3 {[%clk 0:04:50.1]} 6... Be7
{[%clk 0:04:56.3]} 7. Qd2 {[%clk 0:04:48.9]} 7... c6 {[%clk 0:04:55.8]} 8. Nge2
{[%clk 0:04:48.4]} 8... Qc7 {[%clk 0:04:55.5]} 9. Ng3 {[%clk 0:04:48]} 9... Nc5
{[%clk 0:04:52.5]} 10. Bc4 {[%clk 0:04:45]} 10... b6 {[%clk 0:04:47.6]} 11. Nf5
{[%clk 0:04:42.4]} 11... Bxf5 {[%clk 0:04:45.8]} 12. exf5 {[%clk 0:04:41.7]}
12... b5 {[%clk 0:04:45.7]} 13. Bb3 {[%clk 0:04:39.4]} 13... O-O {[%clk
0:04:43]} 14. Qf2 {[%clk 0:04:37.5]} 14... Nxb3 {[%clk 0:04:41.8]} 15. axb3
{[%clk 0:04:37.4]} 15... a6 {[%clk 0:04:33.6]} 16. O-O {[%clk 0:04:36.2]} 16...
c5 {[%clk 0:04:31.2]} 17. g4 {[%clk 0:04:34.2]} 17... Rfd8 {[%clk 0:04:27.5]}
18. Rad1 {[%clk 0:04:32.6]} 18... Rd7 {[%clk 0:04:09.1]} 19. g5 {[%clk
0:04:30.6]} 19... Ne8 {[%clk 0:04:03.9]} 20. Nd5 {[%clk 0:04:26.6]} 20... Qd8
{[%clk 0:04:00.2]} 21. h4 {[%clk 0:04:22.5]} 21... f6 {[%clk 0:03:55.6]} 22. g6
{[%clk 0:04:20.5]} 22... Rb8 {[%clk 0:03:50.3]} 23. c4 {[%clk 0:04:17.9]} 23...
Rc8 {[%clk 0:03:38.1]} 24. Kh1 {[%clk 0:04:14.9]} 24... Bd6 {[%clk 0:03:33.1]}
25. Qg2 {[%clk 0:04:11.6]} 25... h6 {[%clk 0:03:31.2]} 26. Qe2 {[%clk
0:03:57.5]} 26... Rb8 {[%clk 0:03:29.9]} 27. Qd2 {[%clk 0:03:53.5]} 27... Nc7
{[%clk 0:03:25.3]} 28. Bxh6 {[%clk 0:03:48.2]} 28... Nxd5 {[%clk 0:03:22.9]} 29.
Qxd5+ {[%clk 0:03:46.3]} 29... Kh8 {[%clk 0:03:20.5]} 30. Bc1 {[%clk 0:03:43.2]}
30... Rbb7 {[%clk 0:03:19.5]} 31. Qe4 {[%clk 0:03:34.1]} 31... Bf8 {[%clk
0:03:17.8]} 32. Rd5 {[%clk 0:03:20.7]} 32... Rxd5 {[%clk 0:03:13.6]} 33. cxd5
{[%clk 0:03:19.3]} 33... Rd7 {[%clk 0:03:12.5]} 34. Rd1 {[%clk 0:03:17.8]} 34...
c4 {[%clk 0:03:11.9]} 35. bxc4 {[%clk 0:03:16.9]} 35... bxc4 {[%clk 0:03:09.6]}
36. Qxc4 {[%clk 0:03:16.8]} 36... Rc7 {[%clk 0:03:02.6]} 37. Qg4 {[%clk
0:03:15.7]} 37... Rxc1 {[%clk 0:02:54.3]} 38. Qh5+ {[%clk 0:03:14.4]} 38... Kg8
{[%clk 0:02:52.1]} 39. Qh7# {[%clk 0:03:14.3]} 1-0

[Event "Live Chess"]
[Site "Chess.com"]
[Date "2023.05.20"]
[Round "-"]
[White "LiamBellwood"]
[Black "McSlash1"]
[Result "1-0"]
[WhiteElo "2077"]
[BlackElo "2041"]
[TimeControl "300"]
[EndTime "14:47:10 PDT"]
[Termination "LiamBellwood won by checkmate"]

1. d4 {[%clk 0:04:58.6]} 1... Nf6 {[%clk 0:04:58.5]} 2. Nc3 {[%clk 0:04:56.7]}
2... g6 {[%clk 0:04:58]} 3. Bf4 {[%clk 0:04:51.9]} 3... d5 {[%clk 0:04:57.5]} 4.
e3 {[%clk 0:04:51]} 4... Bg7 {[%clk 0:04:56.9]} 5. h4 {[%clk 0:04:50.6]} 5...
O-O {[%clk 0:04:56.5]} 6. h5 {[%clk 0:04:50.1]} 6... gxh5 {[%clk 0:04:56.3]} 7.
Rxh5 {[%clk 0:04:49.8]} 7... Bg4 {[%clk 0:04:55.7]} 8. Be2 {[%clk 0:04:40.8]}
8... Bxh5 {[%clk 0:04:54.9]} 9. Bxh5 {[%clk 0:04:39.7]} 9... Nxh5 {[%clk
0:04:54.8]} 10. Qxh5 {[%clk 0:04:38.8]} 10... e6 {[%clk 0:04:54.7]} 11. Nf3
{[%clk 0:04:35]} 11... f6 {[%clk 0:04:53.4]} 12. O-O-O {[%clk 0:04:29.8]} 12...
Qe8 {[%clk 0:04:53]} 13. Qh2 {[%clk 0:04:29.2]} 13... Rf7 {[%clk 0:04:44]} 14.
Rh1 {[%clk 0:04:24.1]} 14... Bf8 {[%clk 0:04:43.5]} 15. Bxc7 {[%clk 0:03:59.3]}
15... Rxc7 {[%clk 0:04:41.6]} 16. Qxc7 {[%clk 0:03:57]} 16... Nc6 {[%clk
0:04:30.5]} 17. Qxh7# {[%clk 0:03:56]} 1-0

[Event "Live Chess"]
[Site "Chess.com"]
[Date "2023.05.20"]
[Round "-"]
[White "VicLemon"]
[Black "colourmefree"]
[Result "1-0"]
[WhiteElo "1346"]
[BlackElo "398"]
[TimeControl "300"]
[EndTime "14:47:19 PDT"]
[Termination "VicLemon won by checkmate"]

1. d4 {[%clk 0:04:56.1]} 1... d5 {[%clk 0:04:58.4]} 2. Nf3 {[%clk 0:04:53]} 2...
Nf6 {[%clk 0:04:55.5]} 3. c4 {[%clk 0:04:50.9]} 3... e6 {[%clk 0:04:53.3]} 4. g3
{[%clk 0:04:48.2]} 4... c6 {[%clk 0:04:49.2]} 5. Bg2 {[%clk 0:04:45.4]} 5...
Nbd7 {[%clk 0:04:45.7]} 6. O-O {[%clk 0:04:43.4]} 6... Nb6 {[%clk 0:04:36.6]} 7.
Nbd2 {[%clk 0:04:21]} 7... Nxc4 {[%clk 0:04:32.2]} 8. Nxc4 {[%clk 0:04:19.2]}
8... dxc4 {[%clk 0:04:31.4]} 9. a4 {[%clk 0:04:12.2]} 9... Bb4 {[%clk
0:04:22.2]} 10. Qc2 {[%clk 0:04:03]} 10... Qd5 {[%clk 0:04:00.8]} 11. Rd1 {[%clk
0:03:34.9]} 11... Ne4 {[%clk 0:03:46.2]} 12. Ng5 {[%clk 0:03:23.6]} 12... f5
{[%clk 0:03:20.6]} 13. Bf4 {[%clk 0:02:34.3]} 13... O-O {[%clk 0:02:59.7]} 14.
Nxe4 {[%clk 0:02:29.4]} 14... fxe4 {[%clk 0:02:48.1]} 15. Bxe4 {[%clk
0:02:28.1]} 15... Qd7 {[%clk 0:02:20.5]} 16. Bxh7+ {[%clk 0:02:25.8]} 16... Kf7
{[%clk 0:02:11.2]} 17. Qg6+ {[%clk 0:02:21.8]} 17... Ke7 {[%clk 0:02:02]} 18.
Qxg7+ {[%clk 0:02:01.2]} 18... Rf7 {[%clk 0:01:48.4]} 19. Bg5+ {[%clk
0:01:44.7]} 19... Kd6 {[%clk 0:01:37.4]} 20. Qe5# {[%clk 0:01:41.9]} 1-0

[Event "Live Chess"]
[Site "Chess.com"]
[Date "2023.05.20"]
[Round "-"]
[White "CeladonFish"]
[Black "Ed_Knox"]
[Result "1-0"]
[WhiteElo "1138"]
[BlackElo "1456"]
[TimeControl "300"]
[EndTime "14:47:21 PDT"]
[Termination "CeladonFish won on time"]

1. d4 {[%clk 0:04:59.1]} 1... g6 {[%clk 0:04:57.8]} 2. c4 {[%clk 0:04:57.2]}
2... Bg7 {[%clk 0:04:57.1]} 3. Nc3 {[%clk 0:04:56.2]} 3... d6 {[%clk 0:04:56.6]}
4. Bf4 {[%clk 0:04:55.2]} 4... e5 {[%clk 0:04:54.8]} 5. dxe5 {[%clk 0:04:53.4]}
5... dxe5 {[%clk 0:04:54.2]} 6. Be3 {[%clk 0:04:51.8]} 6... Nc6 {[%clk 0:04:44]}
7. Qxd8+ {[%clk 0:04:48.5]} 7... Kxd8 {[%clk 0:04:42.8]} 8. Nf3 {[%clk
0:04:46.4]} 8... f6 {[%clk 0:04:33.2]} 9. O-O-O+ {[%clk 0:04:39.9]} 9... Bd7
{[%clk 0:04:17.6]} 10. g3 {[%clk 0:04:19.3]} 10... Bh6 {[%clk 0:04:14.8]} 11.
Bxh6 {[%clk 0:04:17.2]} 11... Nxh6 {[%clk 0:04:13.1]} 12. Bg2 {[%clk 0:04:16]}
12... Ng4 {[%clk 0:03:39.9]} 13. Ne4 {[%clk 0:04:02.8]} 13... Rf8 {[%clk
0:03:26]} 14. h3 {[%clk 0:03:58.9]} 14... Nh6 {[%clk 0:03:03.5]} 15. Nc5 {[%clk
0:03:48.5]} 15... Rf7 {[%clk 0:02:59.7]} 16. Nxb7+ {[%clk 0:03:43.8]} 16... Ke7
{[%clk 0:02:56.7]} 17. Nc5 {[%clk 0:03:39.6]} 17... Be6 {[%clk 0:02:42.3]} 18.
Nxe6 {[%clk 0:03:36.5]} 18... Kxe6 {[%clk 0:02:41.3]} 19. h4 {[%clk 0:03:24.3]}
19... Nf5 {[%clk 0:02:39.7]} 20. Bh3 {[%clk 0:03:21.5]} 20... Ne7 {[%clk
0:02:06.3]} 21. g4 {[%clk 0:03:15.5]} 21... Nd6 {[%clk 0:01:58.8]} 22. g5+
{[%clk 0:03:12.8]} 22... f5 {[%clk 0:01:58.1]} 23. c5 {[%clk 0:03:06.2]} 23...
Ne4 {[%clk 0:01:53.6]} 24. Rh2 {[%clk 0:02:55.5]} 24... Rb8 {[%clk 0:01:44.8]}
25. Nd2 {[%clk 0:02:52.5]} 25... Nd5 {[%clk 0:01:38.8]} 26. Nxe4 {[%clk
0:02:50.9]} 26... Nf4 {[%clk 0:01:30.3]} 27. Rd2 {[%clk 0:02:25.5]} 27... Nxh3
{[%clk 0:01:26.3]} 28. Rxh3 {[%clk 0:02:23.1]} 28... fxe4 {[%clk 0:01:25.7]} 29.
f3 {[%clk 0:02:18.8]} 29... exf3 {[%clk 0:01:23.5]} 30. Rxf3 {[%clk 0:02:17.9]}
30... Rxf3 {[%clk 0:01:05.2]} 31. exf3 {[%clk 0:02:16.6]} 31... Rf8 {[%clk
0:01:02.6]} 32. Rd3 {[%clk 0:02:13.6]} 32... Rf4 {[%clk 0:01:01.4]} 33. Re3
{[%clk 0:02:03.2]} 33... Rxh4 {[%clk 0:00:56.6]} 34. Re4 {[%clk 0:01:59.6]}
34... Rh3 {[%clk 0:00:51.3]} 35. f4 {[%clk 0:01:54.8]} 35... Kf5 {[%clk
0:00:49.1]} 36. Rxe5+ {[%clk 0:01:51]} 36... Kxf4 {[%clk 0:00:48.2]} 37. Re7
{[%clk 0:01:50.2]} 37... Kxg5 {[%clk 0:00:40.2]} 38. Rxc7 {[%clk 0:01:49.3]}
38... h5 {[%clk 0:00:37.2]} 39. Rxa7 {[%clk 0:01:48.1]} 39... Rd3 {[%clk
0:00:25.8]} 40. c6 {[%clk 0:01:42.6]} 40... Rd8 {[%clk 0:00:23.5]} 41. Ra5+
{[%clk 0:01:30.6]} 41... Kg4 {[%clk 0:00:21.6]} 42. Rc5 {[%clk 0:01:29.1]} 42...
Rc8 {[%clk 0:00:20.5]} 43. b4 {[%clk 0:01:28.5]} 43... h4 {[%clk 0:00:19.5]} 44.
b5 {[%clk 0:01:28]} 44... h3 {[%clk 0:00:18.8]} 45. b6 {[%clk 0:01:27.7]} 45...
h2 {[%clk 0:00:17.9]} 46. b7 {[%clk 0:01:11]} 46... h1=Q+ {[%clk 0:00:16.1]} 47.
Kb2 {[%clk 0:01:10.7]} 47... Qg2+ {[%clk 0:00:14.5]} 48. Kb3 {[%clk 0:01:08]}
48... Qf3+ {[%clk 0:00:13.3]} 49. Ka4 {[%clk 0:01:05.7]} 49... Qe4+ {[%clk
0:00:12.4]} 50. Kb5 {[%clk 0:01:05.1]} 50... Qd3+ {[%clk 0:00:10.6]} 51. Kb6
{[%clk 0:01:04.3]} 51... Qb1+ {[%clk 0:00:05.6]} 52. Rb5 {[%clk 0:01:03.4]}
52... Qd3 {[%clk 0:00:01.8]} 53. bxc8=Q+ {[%clk 0:01:00.6]} 1-0